[Event "1. Bamberg-Open 2018"]
[Site "Bamberg"]
[Date "2018.05.10"]
[Round "3"]
[White "Donchenko, Anatoly"]
[Black "Brenner, Markus"]
[Result "1-0"]
[ECO "A34"]
[WhiteElo "2301"]
[BlackElo "2079"]
[Annotator "NA"]
[PlyCount "91"]
[EventDate "2018.??.??"]
[EventType "swiss"]
[EventCountry "GER"]
[SourceTitle "playchess.com"]
[Source "ChessBase"]
[SourceQuality "1"]
[TimeControl "40/5400+30:900+30"]

1. Nf3 {[%emt 0:00:00]} c5 {[%emt 0:00:08]} 2. c4 {[%emt 0:00:00]} Nf6 {[%emt 0:00:19]} 3. Nc3 {[%emt 0:00:18]} d5 {[%emt 0:00:18]} 4. cxd5 {[%emt 0:00:21]} Nxd5 {[%emt 0:00:09]} 5. e4 {[%emt 0:00:54]} Nxc3 {[%emt 0:02:11]} 6. dxc3 {[%emt 0:01:48]} Qxd1+ {[%emt 0:00:36]} 7. Kxd1 {[%emt 0:00:10]} a6 {[%emt 0:00:42] A34: Symmetrical English: 2 Nc3, lines with ...d5} (7... e6 8. Bb5+ Bd7 9. a4 Nc6 10. Kc2 a6 11. Be2 Be7 12. Rd1 Rc8 13. Nd2 Na5 14. Nc4 Nxc4 15. Bxc4 {0-1 (46) Sadzikowski,D (2496)-Li,C (2722) Heusenstamm 2014}) 8. Be3 {[%emt 0:00:34]} e6 {[%emt 0:00:23]} 9. a4 $146 {[%emt 0:00:22]} ({Predecessor:} 9. Nd2 Nd7 10. a4 Ne5 11. Be2 h5 12. h3 Bd7 13. Kc2 Bc6 14. f3 b6 15. f4 Nd7 16. Bf3 Be7 17. e5 Bxf3 18. gxf3 O-O-O 19. Rhg1 g6 20. a5 {½-½ (20) Van Tienhoven,R (2389)-Dijon,J (2437) ICCF email 2011}) 9... b6 {[%emt 0:01:41]} 10. Nd2 {[%emt 0:01:11]} Bb7 {[%emt 0:01:40]} 11. f3 {[%emt 0:00:30]} Nd7 {[%emt 0:00:29]} 12. Nc4 {[%emt 0:00:38]} Be7 {[%emt 0:03:03]} 13. Kc2 {[%emt 0:00:19]} O-O {[%emt 0:01:07]} 14. Be2 {[%emt 0:02:16]} Bc6 {[%emt 0:03:26]} 15. Bf4 {[%emt 0:05:23]} Ra7 {[%emt 0:01:16]} 16. Rhd1 {[%emt 0:01:05]} Rc8 {[%emt 0:03:29]} 17. b3 {[%emt 0:06:19]} Bd8 {[%emt 0:02:21]} 18. Rd2 {[%emt 0:06:00]} f6 {[%emt 0:13:38]} 19. Nd6 {[%emt 0:08:23]} Rca8 {[%emt 0:00:37]} 20. Bc4 {[%emt 0:00:18]} Nf8 {[%emt 0:00:59]} 21. e5 {[%emt 0:00:41]} g5 {[%emt 0:09:31]} 22. Bg3 {[%emt 0:01:36]} Kg7 {[%emt 0:00:20]} 23. exf6+ {[%emt 0:00:45]} Bxf6 {[%emt 0:00:18]} 24. Ne4 {[%emt 0:00:57]} b5 {[%emt 0:02:43]} 25. Be2 {[%emt 0:01:47]} Bxe4+ {[%emt 0:01:51]} 26. fxe4 {[%emt 0:00:11]} b4 {[%emt 0:00:59]} 27. e5 {[%emt 0:01:06]} Be7 {[%emt 0:00:04]} 28. Bc4 {[%emt 0:04:17]} Rd8 $2 {[%emt 0:02:09]} (28... Rc7 $16 29. Rf1 g4) 29. Rad1 {[%emt 0:01:16]} (29. Rxd8 $18 Bxd8 30. Bf2) 29... Rxd2+ {[%emt 0:00:14]} 30. Rxd2 {[%emt 0:00:09]} a5 {[%emt 0:00:46]} 31. Bf2 {[%emt 0:04:53]} Rc7 {[%emt 0:00:35]} 32. cxb4 {[%emt 0:00:51]} axb4 {[%emt 0:01:35]} 33. Kd3 {[%emt 0:02:10]} Ng6 $2 {[%emt 0:04:30]} (33... Rd7+ 34. Ke3 Rxd2 35. Kxd2 Ng6 36. Bxe6 Nxe5) 34. Ke4 {[%emt 0:00:44]} Kf7 {[%emt 0:00:55]} 35. Be3 {[%emt 0:02:34]} Nf8 {[%emt 0:01:17]} 36. Bb5 {[%emt 0:02:02]} Ra7 {[%emt 0:01:58]} 37. g4 {[%emt 0:02:06]} Rb7 {[%emt 0:02:55]} 38. Rf2+ {[%emt 0:02:17]} Kg7 {[%emt 0:00:17]} 39. Rc2 {[%emt 0:02:35]} Nd7 {[%emt 0:01:43]} 40. Bc4 {[%emt 0:00:32]} Nf8 {[%emt 0:16:11]} 41. a5 {[%emt 0:16:13]} Ra7 $18 {[%emt 0:00:49]} 42. a6 {[%emt 0:00:17]} Kf7 {[%emt 0:04:36]} 43. Bb5 {[%emt 0:02:09]} Nd7 {[%emt 0:01:34]} 44. Bxd7 {[%emt 0:02:01]} Rxd7 {[%emt 0:00:10]} 45. Bxc5 {[%emt 0:00:23]} Rc7 {[%emt 0:00:36]} 46. a7 {[%emt 0:00:15]} 1-0

[Event "1. Bamberg-Open 2018"]
[Site "Bamberg"]
[Date "2018.05.10"]
[Round "3"]
[White "Pribyl, Josef"]
[Black "Roettig, Hans-Peter"]
[Result "1/2-1/2"]
[ECO "A89"]
[WhiteElo "2268"]
[BlackElo "2021"]
[Annotator "NA"]
[PlyCount "39"]
[EventDate "2018.??.??"]
[EventType "swiss"]
[EventCountry "GER"]
[SourceTitle "playchess.com"]
[Source "ChessBase"]
[SourceQuality "1"]
[TimeControl "40/5400+30:900+30"]

{[%evp 20,39,56,21,24,32767,32767,51,32767,32767,34,70,68,111,120,120,100,119,129,112,32767,183]} 1. d4 {[%emt 0:00:00]} f5 {[%emt 0:00:12]} 2. g3 {[%emt 0:00:00]} Nf6 {[%emt 0:00:10]} 3. Bg2 {[%emt 0:00:00]} g6 {[%emt 0:00:14]} 4. c4 {[%emt 0:00:00]} Bg7 {[%emt 0:00:07]} 5. Nc3 {[%emt 0:00:00]} d6 {[%emt 0:00:19]} 6. Nf3 {[%emt 0:00:11]} O-O {[%emt 0:00:06]} 7. O-O {[%emt 0:00:08]} Nc6 {[%emt 0:02:28]} 8. Qc2 {[%emt 0:03:32]} e5 {[%emt 0:07:21] A89: Dutch Defence: Leningrad System: 5 Nf3 0-0 6 0-0 d6 7 Nc3 Nc6} 9. dxe5 {[%emt 0:00:43]} Nxe5 {[%emt 0:00:57]} (9... dxe5 10. Rd1 Bd7 11. Bg5 e4 12. Ne1 Ne5 13. Nd5 c6 14. Nxf6+ Bxf6 15. Bxf6 Qxf6 16. f4 exf3 17. exf3 f4 18. b3 {0-1 (73) Schepetkova,M (2243)-Osmak,I (2375) Moscow 2018}) 10. Rd1 {[%emt 0:01:41]} Qe7 {[%emt 0:12:38]} 11. b3 $146 {[%emt 0:00:18]} ({Predecessor:} 11. Bf4 a6 12. Rac1 h6 13. Nh4 Kh7 14. e4 fxe4 15. Nxe4 Bg4 16. Re1 {1-0 (27) Savoca,A (2260)-Sciallero,V (2110) ICCF email 2009}) 11... Re8 {[%emt 0:02:54]} 12. Bb2 {[%emt 0:00:57]} h6 {[%emt 0:09:00]} 13. Rd2 {[%emt 0:01:48]} Neg4 {[%emt 0:05:26]} 14. h3 {[%emt 0:10:22]} Nxf2 {[%emt 0:12:50]} 15. Kxf2 {[%emt 0:10:52]} Ne4+ {[%emt 0:05:26]} 16. Ke1 {[%emt 0:00:57]} ({Don't play} 16. Nxe4 $6 fxe4 17. Kg1 (17. Bxg7 Qxg7 18. Rdd1 Bf5 $11) 17... exf3 $11) 16... c6 {[%emt 0:12:36]} 17. Nxe4 {[%emt 0:04:16]} fxe4 {[%emt 0:00:18] [#]} 18. Nh2 $1 {[%emt 0:00:53]} e3 {[%emt 0:01:34]} 19. Rd3 {[%emt 0:05:14]} Qg5 20. Nf1 $18 {[%emt 0:05:44]} 1/2-1/2

[Event "1. Bamberg-Open 2018"]
[Site "Bamberg"]
[Date "2018.05.10"]
[Round "3"]
[White "Spitzl, Vinzent"]
[Black "Gass, Ulrich"]
[Result "1-0"]
[ECO "B07"]
[WhiteElo "2254"]
[BlackElo "2079"]
[Annotator "NA"]
[PlyCount "98"]
[EventDate "2018.??.??"]
[EventType "swiss"]
[EventCountry "GER"]
[SourceTitle "playchess.com"]
[Source "ChessBase"]
[SourceQuality "1"]
[TimeControl "40/5400+30:900+30"]

1. e4 {[%emt 0:00:00]} d6 {[%emt 0:06:00]} 2. d4 {[%emt 0:00:00]} Nf6 {[%emt 0:00:12]} 3. Nc3 {[%emt 0:00:00]} g6 {[%emt 0:00:32]} 4. Be3 {[%emt 0:00:00]} c6 {[%emt 0:00:55]} 5. a4 {[%emt 0:01:40]} Qa5 {[%emt 0:05:23]} 6. Bd2 {[%emt 0:01:51]} Qb6 {[%emt 0:04:37]} 7. Nge2 {[%emt 0:00:16]} a5 {[%emt 0:00:35]} 8. h3 {[%emt 0:01:02]} Bg7 {[%emt 0:05:13]} 9. Be3 {[%emt 0:01:05]} O-O {[%emt 0:03:54]} 10. g4 {[%emt 0:00:20]} h6 {[%emt 0:07:32]} 11. Bg2 {[%emt 0:00:27]} Qc7 {[%emt 0:01:17]} 12. Qd2 {[%emt 0:00:19]} Kh7 {[%emt 0:00:06]} 13. O-O {[%emt 0:00:16]} e5 {[%emt 0:00:50]} 14. Rad1 {[%emt 0:03:15]} Na6 {[%emt 0:04:04]} 15. f4 {[%emt 0:02:51]} Nb4 {[%emt 0:03:38]} 16. dxe5 {[%emt 0:08:40]} dxe5 {[%emt 0:00:10]} 17. Bc5 {[%emt 0:00:10]} Re8 {[%emt 0:01:28]} 18. fxe5 {[%emt 0:01:27]} Ng8 {[%emt 0:13:58]} (18... Qxe5 $16 {was worth a try.} 19. Bd4 Qe7) 19. Qd6 {[%emt 0:04:31]} (19. Bd6 $18 Qb6+ 20. Nd4) 19... Re7 {[%emt 0:03:41]} (19... Qxd6 $142 20. exd6 (20. Bxd6 Be6 $18) 20... Be6) 20. Qxc7 {[%emt 0:06:46]} Rxc7 {[%emt 0:00:02]} 21. Bd6 {[%emt 0:00:21]} Rd7 {[%emt 0:00:12]} 22. Rd2 {[%emt 0:00:19]} b6 {[%emt 0:04:20]} 23. Nb1 {[%emt 0:01:56]} Raa7 {[%emt 0:02:15]} 24. c3 {[%emt 0:01:22]} Na6 {[%emt 0:00:57]} 25. Nd4 {[%emt 0:04:07]} Bb7 {[%emt 0:08:59]} 26. Rdf2 {[%emt 0:01:10]} Ba8 {[%emt 0:01:02]} 27. Na3 {[%emt 0:02:01]} Nc5 {[%emt 0:04:49]} 28. Bxc5 {[%emt 0:00:56]} bxc5 {[%emt 0:00:03]} 29. e6 {[%emt 0:00:20]} Bxd4 {[%emt 0:01:44]} 30. cxd4 {[%emt 0:00:10]} fxe6 {[%emt 0:00:43]} 31. dxc5 {[%emt 0:00:12]} e5 {[%emt 0:02:52]} 32. Nc4 {[%emt 0:01:24]} Re7 {[%emt 0:00:19]} 33. Nb6 {[%emt 0:01:12]} Kg7 {[%emt 0:00:53]} 34. Nc8 {[%emt 0:00:08]} Rac7 {[%emt 0:01:28]} 35. Nxe7 {[%emt 0:00:06]} Rxe7 {[%emt 0:00:16]} 36. Rf8 {[%emt 0:03:08]} Bb7 {[%emt 0:00:52]} 37. Rb8 {[%emt 0:00:11]} Nf6 {[%emt 0:00:29]} 38. b4 {[%emt 0:00:36]} axb4 {[%emt 0:01:24]} 39. Rb1 {[%emt 0:00:26]} Ba6 {[%emt 0:01:04]} 40. Rb6 {[%emt 0:00:40]} Bd3 {[%emt 0:16:05]} 41. R1xb4 {[%emt 0:15:08]} g5 {[%emt 0:01:09]} 42. Rxc6 {[%emt 0:01:20]} Ra7 {[%emt 0:00:10]} 43. Rcb6 {[%emt 0:00:29]} Ra5 {[%emt 0:01:50]} 44. c6 {[%emt 0:01:34]} Rc5 {[%emt 0:00:28]} 45. Rb7+ {[%emt 0:00:18]} Kg6 {[%emt 0:00:23]} 46. c7 {[%emt 0:00:25]} Ba6 {[%emt 0:03:03]} 47. Ra7 {[%emt 0:00:45]} Bc8 {[%emt 0:00:29]} 48. Rb8 {[%emt 0:00:16]} Be6 {[%emt 0:00:25]} 49. Ra6 $18 {[%emt 0:00:17]} Ng8 1-0

[Event "1. Bamberg-Open 2018"]
[Site "Bamberg"]
[Date "2018.05.10"]
[Round "3"]
[White "Schulz, Karsten"]
[Black "Schmidt, Justus"]
[Result "1/2-1/2"]
[ECO "A06"]
[WhiteElo "2246"]
[BlackElo "2136"]
[Annotator "ChessBase"]
[PlyCount "39"]
[EventDate "2018.??.??"]
[EventType "swiss"]
[EventCountry "GER"]
[SourceTitle "playchess.com"]
[Source "ChessBase"]
[SourceQuality "1"]
[TimeControl "40/5400+30:900+30"]

1. Nf3 {[%emt 0:00:00]} d5 {[%emt 0:03:04]} 2. g3 {[%emt 0:00:00]} Nf6 {[%emt 0:00:15]} 3. Bg2 {[%emt 0:00:00]} Bf5 {[%emt 0:00:10]} 4. O-O {[%emt 0:00:00]} e6 {[%emt 0:00:03]} 5. d3 {[%emt 0:00:02]} c6 {[%emt 0:00:33]} 6. c4 {[%emt 0:00:47]} h6 {[%emt 0:02:57]} 7. cxd5 {[%emt 0:00:09]} exd5 {[%emt 0:00:06]} 8. Nc3 {[%emt 0:00:07]} Bc5 {[%emt 0:01:33]} 9. Qc2 {[%emt 0:06:03]} Nbd7 {[%emt 0:00:51]} 10. e4 {[%emt 0:02:07]} dxe4 {[%emt 0:00:26]} 11. dxe4 {[%emt 0:00:28]} Bh7 {[%emt 0:02:14]} 12. Re1 {[%emt 0:02:56]} O-O {[%emt 0:01:21]} 13. Be3 {[%emt 0:00:49]} Re8 {[%emt 0:04:05]} 14. Nh4 {[%emt 0:02:21]} Qe7 {[%emt 0:06:16]} 15. Rad1 {[%emt 0:03:30]} Rad8 {[%emt 0:07:13]} 16. Nf5 {[%emt 0:15:51]} Bxf5 {[%emt 0:06:14]} 17. exf5 {[%emt 0:00:08]} Bxe3 {[%emt 0:08:29]} 18. Rxe3 {[%emt 0:00:19]} Qc5 {[%emt 0:00:21]} 19. Rxe8+ {[%emt 0:01:16]} Rxe8 {[%emt 0:00:13]} 20. h3 {[%emt 0:00:57]} 1/2-1/2

[Event "1. Bamberg-Open 2018"]
[Site "Bamberg"]
[Date "2018.05.10"]
[Round "3"]
[White "Spitzl, Bertram"]
[Black "Troyke, Doreen"]
[Result "1/2-1/2"]
[ECO "A08"]
[WhiteElo "2208"]
[BlackElo "2074"]
[Annotator "NA"]
[PlyCount "172"]
[EventDate "2018.??.??"]
[EventType "swiss"]
[EventCountry "GER"]
[SourceTitle "playchess.com"]
[Source "ChessBase"]
[SourceQuality "1"]
[TimeControl "40/5400+30:900+30"]

1. Nf3 {[%emt 0:00:00]} d5 {[%emt 0:00:04]} 2. g3 {[%emt 0:00:00]} Nf6 {[%emt 0:00:17]} 3. Bg2 {[%emt 0:00:00]} e6 {[%emt 0:00:11]} 4. O-O {[%emt 0:00:00]} Be7 {[%emt 0:00:11]} 5. d3 {[%emt 0:00:00]} O-O {[%emt 0:00:25]} 6. Nbd2 {[%emt 0:00:04]} c5 {[%emt 0:00:36]} 7. e4 {[%emt 0:00:06]} Nc6 {[%emt 0:00:26]} 8. Re1 {[%emt 0:00:08]} Qc7 {[%emt 0:00:47]} 9. c3 {[%emt 0:06:51]} b6 {[%emt 0:04:12]} 10. Qa4 {[%emt 0:05:49] C00: French: Unusual White 2nd moves} (10. e5 Nd7 11. Qe2 a5 12. Nf1 a4 13. Bf4 Bb7 14. h4 Rfc8 15. Ne3 Qd8 16. h5 b5 17. Nxd5 exd5 18. e6 Nf8 19. exf7+ Kxf7 {0-1 (37) Morozevich,A (2675)-Hou,Y (2666) Biel 2017}) 10... Bb7 {[%emt 0:03:43]} 11. Nf1 {[%emt 0:02:43]} Rad8 $146 {[%emt 0:09:26]} ({Predecessor:} 11... a6 12. Bf4 e5 13. Bg5 Rfd8 14. Ne3 d4 15. cxd4 Nxd4 16. Nxd4 Rxd4 17. Qb3 Rad8 {0-1 (49) Karasev,V (2421)-Klovans,J (2455) Halle 2004}) 12. e5 {[%emt 0:05:38]} Nd7 {[%emt 0:00:29]} 13. Bf4 {[%emt 0:00:07]} Rfe8 {[%emt 0:01:18]} 14. h4 {[%emt 0:05:54]} Nf8 {[%emt 0:02:24]} 15. h5 {[%emt 0:02:53]} h6 {[%emt 0:01:46]} 16. N1h2 {[%emt 0:02:22]} Nh7 {[%emt 0:00:29]} 17. Ng4 {[%emt 0:04:07]} Ng5 {[%emt 0:08:01]} ({Black should try} 17... d4 $11) 18. Bxg5 {[%emt 0:17:29]} hxg5 {[%emt 0:01:44]} 19. Kh2 {[%emt 0:08:07]} (19. d4 $14) 19... Rf8 {[%emt 0:07:21]} 20. h6 {[%emt 0:01:56]} ({Better is} 20. Qc2 $11) 20... d4 {[%emt 0:02:42]} 21. c4 {[%emt 0:00:50]} gxh6 {[%emt 0:02:29]} 22. Nxh6+ {[%emt 0:00:35]} Kg7 {[%emt 0:00:05]} 23. Ng4 {[%emt 0:00:08]} Rh8+ {[%emt 0:00:16]} 24. Kg1 {[%emt 0:00:02]} Rdg8 {[%emt 0:01:22]} 25. a3 {[%emt 0:05:04]} Kf8 {[%emt 0:03:15]} 26. b4 {[%emt 0:10:50]} cxb4 {[%emt 0:03:02]} 27. axb4 {[%emt 0:00:10]} Nxb4 {[%emt 0:12:58]} 28. Qxa7 {[%emt 0:02:49]} Nc6 {[%emt 0:08:22]} 29. Qa4 {[%emt 0:00:47]} Nb4 {[%emt 0:01:33]} 30. Qb3 {[%emt 0:01:00]} Nc6 {[%emt 0:03:02]} 31. Reb1 {[%emt 0:02:54]} Bc5 {[%emt 0:00:25]} 32. Qd1 {[%emt 0:01:36]} Rg6 {[%emt 0:03:56]} 33. Qd2 {[%emt 0:01:20]} Ke7 {[%emt 0:02:58]} 34. Rb5 {[%emt 0:00:25]} Rd8 $2 {[%emt 0:05:51]} (34... Kf8 {might work better.} 35. Nxg5 Be7) 35. Nxg5 {[%emt 0:03:45]} Nxe5 $2 {[%emt 0:01:02]} (35... Rdg8 {might work better.}) 36. Qf4 {[%emt 0:04:47]} f6 $2 {[%emt 0:03:05]} (36... Nf3+ 37. Bxf3 Qxf4 38. gxf4 Bxf3) 37. Nxe5 $2 {[%emt 0:02:35]} (37. Bxb7 $18 {has better winning chances.} Rdg8 38. Ne4) 37... Qxe5 {[%emt 0:01:07]} 38. Qxe5 {[%emt 0:01:15]} fxe5 {[%emt 0:00:03]} 39. Bxb7 {[%emt 0:01:00]} Rxg5 {[%emt 0:00:10]} 40. Be4 {[%emt 0:00:13]} Kf6 {[%emt 0:15:51]} 41. Rb2 {[%emt 0:15:41]} Rg7 {[%emt 0:02:08]} 42. Kg2 {[%emt 0:00:55]} Rh8 {[%emt 0:00:23]} 43. Rbb1 {[%emt 0:02:09]} Rg5 {[%emt 0:01:06]} 44. Rh1 {[%emt 0:01:24]} Rgh5 {[%emt 0:00:29]} 45. Rxh5 {[%emt 0:00:07]} Rxh5 {[%emt 0:00:03]} 46. Ra8 {[%emt 0:00:37]} Rg5 {[%emt 0:00:28]} 47. Rh8 {[%emt 0:00:44]} Kg7 {[%emt 0:02:20]} 48. Rh7+ {[%emt 0:00:00]} Kf6 $1 {[%emt 0:00:00]} 49. Rh6+ {[%emt 0:00:00]} Ke7 {[%emt 0:00:00]} 50. Rh7+ {[%emt 0:00:00]} (50. Kf3 $14) 50... Kf6 $14 {[%emt 0:00:00]} 51. Rb7 {[%emt 0:00:00]} Rg7 {[%emt 0:00:00]} 52. Rb8 {[%emt 0:00:00]} Kg5 {[%emt 0:00:00]} 53. Re8 {[%emt 0:00:00]} Kf6 {[%emt 0:00:00]} 54. f3 {[%emt 0:00:00]} Kf7 {[%emt 0:00:00]} 55. Rb8 {[%emt 0:00:00]} Rg8 {[%emt 0:00:00]} 56. Rb7+ {[%emt 0:00:00]} Kf6 {[%emt 0:00:00]} 57. g4 {[%emt 0:00:00]} Rh8 {[%emt 0:00:00]} 58. Kg3 {[%emt 0:00:00]} Rh1 {[%emt 0:00:00]} 59. Rb8 {[%emt 0:00:00]} Kg7 {[%emt 0:00:00]} 60. Kg2 {[%emt 0:00:00]} Rh8 {[%emt 0:00:00]} 61. Rb7+ {[%emt 0:00:00]} Kf6 {[%emt 0:00:00]} 62. Kg3 {[%emt 0:00:41]} Rh1 {[%emt 0:00:00]} 63. Bh7 {[%emt 0:01:03]} Rd1 {[%emt 0:00:01]} 64. Rb8 {[%emt 0:01:29]} Rh1 {[%emt 0:00:46]} 65. Be4 {[%emt 0:00:09]} Kg7 {[%emt 0:01:40]} 66. Kg2 {[%emt 0:01:34]} Rh8 {[%emt 0:00:09]} 67. Rxh8 {[%emt 0:00:03]} Kxh8 {[%emt 0:00:08]} 68. g5 {[%emt 0:00:07]} Kg7 {[%emt 0:00:20]} 69. Kg3 {[%emt 0:00:39]} Bb4 {[%emt 0:01:00]} 70. g6 {[%emt 0:00:36]} Kh6 {[%emt 0:00:50]} 71. Kf2 {[%emt 0:00:07]} Bf8 {[%emt 0:00:30]} 72. Ke2 {[%emt 0:00:06]} Kg5 {[%emt 0:01:17]} 73. Kd2 {[%emt 0:00:09]} Kf6 {[%emt 0:00:15]} 74. Kc2 {[%emt 0:00:05]} Ke7 {[%emt 0:01:08]} 75. Kb3 {[%emt 0:00:11]} Kd7 {[%emt 0:00:48]} 76. Ka4 {[%emt 0:00:05]} Kc7 {[%emt 0:00:06]} 77. Kb5 {[%emt 0:00:05]} Bh6 {[%emt 0:00:39]} 78. Bc6 {[%emt 0:00:06]} Bg7 {[%emt 0:01:35]} 79. Be8 {[%emt 0:00:14]} Bf8 {[%emt 0:00:19]} 80. Bf7 {[%emt 0:00:07]} Bg7 {[%emt 0:00:13]} 81. Bxe6 {[%emt 0:00:07]} Bf8 {[%emt 0:00:10]} 82. Bf5 {[%emt 0:00:46]} Bg7 {[%emt 0:00:11]} 83. c5 {[%emt 0:00:12]} bxc5 {[%emt 0:00:21]} 84. Kxc5 {[%emt 0:00:02]} Kd8 {[%emt 0:00:17]} 85. Kd6 {[%emt 0:00:45]} Ke8 {[%emt 0:00:22]} 86. Ke6 {[%emt 0:01:08]} Bf8 1/2-1/2

[Event "1. Bamberg-Open 2018"]
[Site "Bamberg"]
[Date "2018.05.10"]
[Round "3"]
[White "Friedel, Marcus"]
[Black "Korolev, Alexandr"]
[Result "0-1"]
[ECO "A20"]
[WhiteElo "2190"]
[BlackElo "2071"]
[Annotator "NA"]
[PlyCount "126"]
[EventDate "2018.??.??"]
[EventType "swiss"]
[EventCountry "GER"]
[SourceTitle "playchess.com"]
[Source "ChessBase"]
[SourceQuality "1"]
[TimeControl "40/5400+30:900+30"]

1. c4 {[%emt 0:00:00]} e5 {[%emt 0:03:16]} 2. g3 {[%emt 0:00:00]} Nf6 {[%emt 0:00:10]} 3. Bg2 {[%emt 0:00:00]} Nc6 {[%emt 0:00:08]} 4. Nc3 {[%emt 0:00:31]} Bb4 {[%emt 0:00:25]} 5. Nd5 {[%emt 0:05:09]} Bc5 {[%emt 0:01:40]} 6. e3 {[%emt 0:00:57]} O-O {[%emt 0:00:39]} 7. Ne2 {[%emt 0:00:33]} d6 {[%emt 0:01:55] A25: English Opening vs King's Indian with ...Nc6 but without early d3} (7... Nxd5 8. cxd5 Ne7 9. b3 c6 10. Bb2 Nxd5 11. Bxe5 Nc7 12. Qc2 Ne6 13. Nf4 Qe7 14. Nxe6 dxe6 15. O-O Bd7 16. Rab1 {½-½ (41) Harikrishna,P (2740)-Yilmaz,M (2582) Kocaeli 2015}) 8. a3 {[%emt 0:02:30]} Nxd5 {[%emt 0:01:19]} 9. cxd5 {[%emt 0:00:51]} Ne7 {[%emt 0:00:19]} 10. d4 {[%emt 0:09:19]} exd4 {[%emt 0:00:44]} 11. Nxd4 {[%emt 0:00:14]} Bd7 {[%emt 0:04:35]} 12. O-O {[%emt 0:01:37]} Qc8 $146 {[%emt 0:03:18]} ({Predecessor:} 12... a5 13. b3 Nf5 14. Bb2 Qf6 15. Rc1 Rfe8 16. Rc2 Nxd4 17. Bxd4 Bxd4 18. Qxd4 Qxd4 19. exd4 {1-0 (65) Tatisic,M (2260)-Govedarica,R (2418) Belgrade 2005}) 13. b4 {[%emt 0:10:22]} Bb6 {[%emt 0:00:28]} 14. Bb2 {[%emt 0:00:48]} Bh3 {[%emt 0:01:18]} 15. Ne2 {[%emt 0:15:52]} Bxg2 {[%emt 0:00:53]} 16. Kxg2 {[%emt 0:02:15]} Qf5 {[%emt 0:01:07]} 17. Nf4 {[%emt 0:01:29]} a5 {[%emt 0:06:38]} 18. Qf3 {[%emt 0:06:24]} Ng6 {[%emt 0:06:58]} 19. Nxg6 {[%emt 0:03:57]} Qxf3+ {[%emt 0:00:17]} 20. Kxf3 {[%emt 0:00:02]} hxg6 {[%emt 0:00:20]} 21. b5 {[%emt 0:04:20]} a4 22. Bc3 {[%emt 0:05:30]} Bc5 {[%emt 0:01:52]} 23. Rfc1 {[%emt 0:07:12]} f6 {[%emt 0:00:35]} 24. Ke2 {[%emt 0:07:13]} Rfe8 {[%emt 0:01:23]} 25. Kd3 {[%emt 0:00:06]} Kf7 {[%emt 0:00:40]} 26. Bd4 {[%emt 0:02:21]} b6 {[%emt 0:00:20]} 27. Rab1 {[%emt 0:03:19]} Reb8 {[%emt 0:06:44]} 28. h4 {[%emt 0:01:16]} Rb7 {[%emt 0:01:44]} 29. Bb2 {[%emt 0:01:37]} Ra5 {[%emt 0:01:14]} 30. Bc3 {[%emt 0:00:23]} Ra8 {[%emt 0:00:10]} 31. Bb4 {[%emt 0:00:38]} Ke7 {[%emt 0:05:22]} 32. Rc4 {[%emt 0:00:38]} Kf7 {[%emt 0:01:27]} 33. Rh1 {[%emt 0:01:32]} Rbb8 {[%emt 0:02:22]} 34. h5 {[%emt 0:01:16]} gxh5 {[%emt 0:00:10]} 35. Rxh5 {[%emt 0:00:08]} Re8 {[%emt 0:00:41]} 36. Rg4 {[%emt 0:02:06]} Re5 {[%emt 0:01:54]} 37. Rxe5 {[%emt 0:02:33]} fxe5 {[%emt 0:00:17]} 38. Bxc5 {[%emt 0:02:12]} bxc5 {[%emt 0:01:44]} 39. Kc4 {[%emt 0:00:35]} Rh8 {[%emt 0:01:25]} 40. b6 {[%emt 0:00:45]} cxb6 {[%emt 0:15:32]} 41. Kb5 {[%emt 0:15:11]} Rh2 {[%emt 0:00:52]} 42. Kc6 {[%emt 0:00:00]} (42. Rxa4 $18 Rxf2 43. Kxb6) 42... Rxf2 {[%emt 0:00:00]} 43. Kxd6 {[%emt 0:00:00]} Rf3 {[%emt 0:00:00]} 44. Re4 {[%emt 0:00:00]} c4 {[%emt 0:00:00]} ({Much weaker is} 44... Rxg3 $6 45. Kc7 $18) 45. Kc7 {[%emt 0:00:00]} c3 {[%emt 0:00:00]} ({Avoid the trap} 45... Rxg3 $2 46. d6 $18) 46. d6 {[%emt 0:00:00]} Ke6 {[%emt 0:00:00]} ({Don't go for} 46... Rxg3 $2 47. d7 $18) 47. Rc4 {[%emt 0:02:14]} Rf7+ {[%emt 0:00:00]} 48. Kxb6 {[%emt 0:00:38]} Kxd6 {[%emt 0:00:00]} 49. Rxc3 {[%emt 0:00:11]} Rf3 {[%emt 0:00:00]} 50. Rd3+ {[%emt 0:00:47]} (50. Ka5 $11) 50... Ke6 {[%emt 0:00:00]} 51. Kb5 {[%emt 0:00:05]} e4 {[%emt 0:00:00]} 52. Rc3 {[%emt 0:00:16]} Rxg3 $11 {[%emt 0:00:00]} 53. Kxa4 {[%emt 0:00:02]} g5 {[%emt 0:00:00]} 54. Kb5 {[%emt 0:00:12]} Rg1 {[%emt 0:00:00]} 55. a4 {[%emt 0:01:08]} Rb1+ {[%emt 0:00:00]} 56. Kc5 {[%emt 0:02:48]} Ra1 {[%emt 0:00:00]} 57. Kb5 {[%emt 0:00:23]} g4 {[%emt 0:00:00]} 58. a5 {[%emt 0:00:36]} g3 {[%emt 0:00:00]} 59. Rc2 {[%emt 0:00:17]} Kf5 {[%emt 0:00:00]} 60. a6 {[%emt 0:00:13]} Kg4 {[%emt 0:00:00]} 61. Rc6 {[%emt 0:01:15]} g2 {[%emt 0:00:00]} 62. Rg6+ {[%emt 0:00:19]} Kf3 {[%emt 0:00:00]} 63. a7 {[%emt 0:00:31]} Rxa7 {[%emt 0:00:00]} 0-1